[Event "Titled Tuesday Blitz February 22 Early 2022"]
[White "Buscar, Michael"]
[Black "Ianov, Viktor"]
[WhiteFideId "2603616"]
[BlackFideId "14102730"]
[WhiteElo "2010"]
[BlackElo "2215"]
[Result "1-0"]
[Round "08"]
[TimeControl "180+1"]
[Date "2022.02.22"]
[WhiteClock "0:00:21"]
[BlackClock "0:00:35"]

1. c4 {[%clk 0:03:00]}  d6 {[%clk 0:03:00]} 2. g3 {[%clk 0:02:59]}  g6 {[%clk 0:03:00]} 3. Bg2 {[%clk 0:02:57]}  Bg7 {[%clk 0:03:00]} 4. e4 {[%clk 0:02:56]}  Nf6 {[%clk 0:03:00]} 5. d3 {[%clk 0:02:56]}  c5 {[%clk 0:03:00]} 6. Ne2 {[%clk 0:02:56]}  Nc6 {[%clk 0:03:00]} 7. Nbc3 {[%clk 0:02:56]}  O-O {[%clk 0:03:00]} 8. h4 {[%clk 0:02:57]}  Bg4 {[%clk 0:02:57]} 9. f3 {[%clk 0:02:55]}  Bd7 {[%clk 0:02:56]} 10. Be3 {[%clk 0:02:50]}  a6 {[%clk 0:02:56]} 11. Qd2 {[%clk 0:02:51]}  Rb8 {[%clk 0:02:56]} 12. h5 {[%clk 0:02:51]}  Nxh5 {[%clk 0:02:48]} 13. Rxh5 {[%clk 0:02:50]}  gxh5 {[%clk 0:02:48]} 14. Bh6 {[%clk 0:02:48]}  e6 {[%clk 0:02:44]} 15. O-O-O {[%clk 0:02:41]}  Qf6 {[%clk 0:02:43]} 16. Bg5 {[%clk 0:02:40]}  Qg6 {[%clk 0:02:42]} 17. Rh1 {[%clk 0:02:36]}  h6 {[%clk 0:02:39]} 18. Be3 {[%clk 0:02:36]}  e5 {[%clk 0:02:37]} 19. Nd5 {[%clk 0:02:35]}  b5 {[%clk 0:02:32]} 20. f4 {[%clk 0:02:30]}  f5 {[%clk 0:02:28]} 21. Bf3 {[%clk 0:02:21]}  bxc4 {[%clk 0:02:26]} 22. Bxh5 {[%clk 0:02:20]}  Qe6 {[%clk 0:02:22]} 23. dxc4 {[%clk 0:02:05]}  fxe4 {[%clk 0:02:18]} 24. g4 {[%clk 0:01:48]}  exf4 {[%clk 0:02:12]} 25. Nexf4 {[%clk 0:01:39]}  Qe5 {[%clk 0:02:12]} 26. Ng6 {[%clk 0:01:23]}  Qxb2+ {[%clk 0:02:10]} 27. Qxb2 {[%clk 0:01:23]}  Bxb2+ {[%clk 0:02:08]} 28. Kc2 {[%clk 0:01:21]}  Bg7 {[%clk 0:02:03]} 29. Nxf8 {[%clk 0:01:20]}  Rxf8 {[%clk 0:01:59]} 30. Rb1 {[%clk 0:01:15]}  Nd4+ {[%clk 0:01:56]} 31. Kd2 {[%clk 0:01:13]}  Be6 {[%clk 0:01:52]} 32. Rb6 {[%clk 0:01:06]}  Bxd5 {[%clk 0:01:50]} 33. cxd5 {[%clk 0:01:06]}  Rf6 {[%clk 0:01:43]} 34. Rxa6 {[%clk 0:01:02]}  Nf3+ {[%clk 0:01:39]} 35. Ke2 {[%clk 0:01:02]}  Nd4+ {[%clk 0:01:38]} 36. Kd2 {[%clk 0:01:01]}  Nf3+ {[%clk 0:01:36]} 37. Kd1 {[%clk 0:01:00]}  Nd4 {[%clk 0:01:35]} 38. Ra8+ {[%clk 0:01:00]}  Kh7 {[%clk 0:01:34]} 39. Ra7 {[%clk 0:01:00]}  Rf3 {[%clk 0:01:31]} 40. Kd2 {[%clk 0:00:53]}  Rh3 {[%clk 0:01:30]} 41. Bf4 {[%clk 0:00:41]}  Rd3+ {[%clk 0:01:23]} 42. Ke1 {[%clk 0:00:38]}  Nb5 {[%clk 0:01:16]} 43. Re7 {[%clk 0:00:33]}  Rxd5 {[%clk 0:01:07]} 44. Rxe4 {[%clk 0:00:31]}  Be5 {[%clk 0:01:05]} 45. Bf7 {[%clk 0:00:28]}  Rd4 {[%clk 0:01:03]} 46. Rxd4 {[%clk 0:00:20]}  cxd4 {[%clk 0:01:01]} 47. Bd2 {[%clk 0:00:19]}  Kg7 {[%clk 0:00:56]} 48. Bc4 {[%clk 0:00:19]}  Na3 {[%clk 0:00:53]} 49. Bd3 {[%clk 0:00:18]}  Bf6 {[%clk 0:00:49]} 50. Bb4 {[%clk 0:00:18]}  Bh4+ {[%clk 0:00:42]} 51. Ke2 {[%clk 0:00:18]}  Bf6 {[%clk 0:00:38]} 52. Bxa3 {[%clk 0:00:18]}  Be5 {[%clk 0:00:38]} 53. Bc1 {[%clk 0:00:18]}  Kf6 {[%clk 0:00:37]} 54. Bxh6 {[%clk 0:00:17]}  Ke7 {[%clk 0:00:37]} 55. a4 {[%clk 0:00:17]}  Kd7 {[%clk 0:00:37]} 56. a5 {[%clk 0:00:18]}  Kc6 {[%clk 0:00:37]} 57. a6 {[%clk 0:00:18]}  Kb6 {[%clk 0:00:37]} 58. g5 {[%clk 0:00:19]}  d5 {[%clk 0:00:36]} 59. g6 {[%clk 0:00:19]}  Ka7 {[%clk 0:00:35]} 60. g7 {[%clk 0:00:19]}  Bxg7 {[%clk 0:00:35]} 61. Bxg7 {[%clk 0:00:20]}  Kb6 {[%clk 0:00:35]} 62. Bxd4+ {[%clk 0:00:21]} 1-0


[Site "https://www.chess.com"]

[Event "Titled Tuesday Blitz February 22 Early 2022"]
[White "Chigaev, Maksim"]
[Black "Bortnyk, Olexandr"]
[WhiteFideId "4108116"]
[BlackFideId "14120828"]
[WhiteElo "2502"]
[BlackElo "2723"]
[Result "0-1"]
[Round "08"]
[TimeControl "180+1"]
[Date "2022.02.22"]
[WhiteClock "0:00:04"]
[BlackClock "0:00:28"]

1. d4 {[%clk 0:03:00]}  f5 {[%clk 0:02:54]} 2. Bg5 {[%clk 0:03:01]}  c6 {[%clk 0:02:54]} 3. Nc3 {[%clk 0:03:01]}  d5 {[%clk 0:02:53]} 4. Qd2 {[%clk 0:03:01]}  g6 {[%clk 0:02:53]} 5. h4 {[%clk 0:03:00]}  h6 {[%clk 0:02:52]} 6. Bf4 {[%clk 0:03:00]}  Bg7 {[%clk 0:02:52]} 7. f3 {[%clk 0:02:53]}  Nf6 {[%clk 0:02:50]} 8. O-O-O {[%clk 0:02:52]}  b5 {[%clk 0:02:47]} 9. Kb1 {[%clk 0:02:50]}  Be6 {[%clk 0:02:43]} 10. e3 {[%clk 0:02:49]}  a5 {[%clk 0:02:40]} 11. Nge2 {[%clk 0:02:46]}  a4 {[%clk 0:02:39]} 12. a3 {[%clk 0:02:42]}  Na6 {[%clk 0:02:33]} 13. Na2 {[%clk 0:02:38]}  Qb6 {[%clk 0:02:26]} 14. Nec1 {[%clk 0:02:28]}  Nd7 {[%clk 0:02:18]} 15. Nd3 {[%clk 0:02:06]}  c5 {[%clk 0:02:08]} 16. dxc5 {[%clk 0:02:03]}  Naxc5 {[%clk 0:01:45]} 17. Nab4 {[%clk 0:02:03]}  O-O {[%clk 0:01:40]} 18. Be2 {[%clk 0:01:34]}  Rac8 {[%clk 0:01:34]} 19. Bg3 {[%clk 0:00:50]}  Bf7 {[%clk 0:01:32]} 20. Nf4 {[%clk 0:00:23]}  Qf6 {[%clk 0:01:31]} 21. c3 {[%clk 0:00:19]}  Nb3 {[%clk 0:01:24]} 22. Qe1 {[%clk 0:00:16]}  e6 {[%clk 0:01:17]} 23. Bxb5 {[%clk 0:00:17]}  Nb6 {[%clk 0:01:16]} 24. h5 {[%clk 0:00:16]}  g5 {[%clk 0:01:15]} 25. Ng6 {[%clk 0:00:17]}  Bxg6 {[%clk 0:01:13]} 26. hxg6 {[%clk 0:00:17]}  Nc4 {[%clk 0:01:08]} 27. Bxc4 {[%clk 0:00:16]}  Rxc4 {[%clk 0:01:09]} 28. Qe2 {[%clk 0:00:11]}  Qxg6 {[%clk 0:00:54]} 29. Qc2 {[%clk 0:00:11]}  Rfc8 {[%clk 0:00:54]} 30. Rhe1 {[%clk 0:00:10]}  Bxc3 {[%clk 0:00:49]} 31. bxc3 {[%clk 0:00:10]}  Rxc3 {[%clk 0:00:50]} 32. Qb2 {[%clk 0:00:04]}  f4+ {[%clk 0:00:51]} 33. e4 {[%clk 0:00:04]}  dxe4 {[%clk 0:00:43]} 34. Ka2 {[%clk 0:00:05]}  e3 {[%clk 0:00:32]} 35. Bh2 {[%clk 0:00:04]}  Rc2 {[%clk 0:00:28]} 0-1


[Site "https://www.chess.com"]

[Event "Titled Tuesday Blitz February 22 Early 2022"]
[White "Cramling Bellon, Anna"]
[Black "Grieve, Harry"]
[WhiteFideId "32009232"]
[BlackFideId "426520"]
[WhiteElo "1905"]
[BlackElo "2294"]
[Result "1-0"]
[Round "08"]
[TimeControl "180+1"]
[Date "2022.02.22"]
[WhiteClock "0:00:01"]
[BlackClock "0:00:02"]

1. d4 {[%clk 0:03:00]}  f5 {[%clk 0:02:59]} 2. e4 {[%clk 0:02:59]}  fxe4 {[%clk 0:02:58]} 3. Nc3 {[%clk 0:02:57]}  Nf6 {[%clk 0:02:59]} 4. Bg5 {[%clk 0:02:54]}  g6 {[%clk 0:02:59]} 5. h4 {[%clk 0:02:54]}  d5 {[%clk 0:02:58]} 6. h5 {[%clk 0:02:52]}  Bf5 {[%clk 0:02:59]} 7. Bxf6 {[%clk 0:02:44]}  exf6 {[%clk 0:02:59]} 8. g4 {[%clk 0:02:45]}  Be6 {[%clk 0:03:00]} 9. hxg6 {[%clk 0:02:45]}  Qd7 {[%clk 0:03:00]} 10. Be2 {[%clk 0:02:23]}  Nc6 {[%clk 0:02:53]} 11. Qd2 {[%clk 0:02:09]}  O-O-O {[%clk 0:02:48]} 12. O-O-O {[%clk 0:02:08]}  Bb4 {[%clk 0:02:46]} 13. Rxh7 {[%clk 0:01:51]}  Rxh7 {[%clk 0:02:47]} 14. gxh7 {[%clk 0:01:51]}  Qxh7 {[%clk 0:02:48]} 15. f3 {[%clk 0:01:49]}  f5 {[%clk 0:01:49]} 16. gxf5 {[%clk 0:01:41]}  Bxf5 {[%clk 0:01:50]} 17. fxe4 {[%clk 0:01:40]}  dxe4 {[%clk 0:01:37]} 18. Qe3 {[%clk 0:01:28]}  Kb8 {[%clk 0:01:19]} 19. Bb5 {[%clk 0:01:05]}  Ne7 {[%clk 0:01:03]} 20. Nge2 {[%clk 0:00:52]}  a6 {[%clk 0:01:01]} 21. Bc4 {[%clk 0:00:50]}  Nc6 {[%clk 0:00:36]} 22. Ng3 {[%clk 0:00:44]}  Bg6 {[%clk 0:00:20]} 23. Rh1 {[%clk 0:00:35]}  Qd7 {[%clk 0:00:10]} 24. d5 {[%clk 0:00:23]}  Ne5 {[%clk 0:00:10]} 25. Bb3 {[%clk 0:00:19]}  Ng4 {[%clk 0:00:06]} 26. Qd4 {[%clk 0:00:13]}  Bd6 {[%clk 0:00:05]} 27. Ngxe4 {[%clk 0:00:11]}  Be5 {[%clk 0:00:04]} 28. Qb4 {[%clk 0:00:07]}  Bf4+ {[%clk 0:00:02]} 29. Kb1 {[%clk 0:00:07]}  Bxe4 {[%clk 0:00:02]} 30. Nxe4 {[%clk 0:00:03]}  Qf5 {[%clk 0:00:01]} 31. Nc5 {[%clk 0:00:03]}  b6 {[%clk 0:00:02]} 32. Nxa6+ {[%clk 0:00:02]}  Kc8 {[%clk 0:00:02]} 33. Qb5 {[%clk 0:00:02]}  Bd6 {[%clk 0:00:01]} 34. Nb4 {[%clk 0:00:01]}  Ne5 {[%clk 0:00:02]} 35. Qxb6 {[%clk 0:00:01]}  cxb6 {[%clk 0:00:02]} 36. Nc6 {[%clk 0:00:01]} 1-0


[Site "https://www.chess.com"]

[Event "Titled Tuesday Blitz February 22 Early 2022"]
[White "De Verdier, Michael"]
[Black "Weetik, Vjacheslav"]
[WhiteFideId "1710516"]
[BlackFideId "4153472"]
[WhiteElo "2301"]
[BlackElo "2469"]
[Result "0-1"]
[Round "08"]
[TimeControl "180+1"]
[Date "2022.02.22"]
[WhiteClock "0:00:02"]
[BlackClock "0:00:07"]

1. d4 {[%clk 0:03:00]}  d5 {[%clk 0:02:59]} 2. Nf3 {[%clk 0:02:59]}  e6 {[%clk 0:02:59]} 3. c4 {[%clk 0:02:59]}  c6 {[%clk 0:03:00]} 4. Nc3 {[%clk 0:02:57]}  dxc4 {[%clk 0:03:00]} 5. a4 {[%clk 0:02:54]}  Bb4 {[%clk 0:02:59]} 6. e3 {[%clk 0:02:53]}  b5 {[%clk 0:02:59]} 7. Bd2 {[%clk 0:02:51]}  a5 {[%clk 0:02:59]} 8. Ne5 {[%clk 0:02:39]}  Nf6 {[%clk 0:02:50]} 9. Qf3 {[%clk 0:02:26]}  Ra6 {[%clk 0:02:30]} 10. axb5 {[%clk 0:02:17]}  cxb5 {[%clk 0:02:30]} 11. Nxb5 {[%clk 0:02:06]}  Bxd2+ {[%clk 0:02:30]} 12. Kxd2 {[%clk 0:02:06]}  Rb6 {[%clk 0:01:47]} 13. Bxc4 {[%clk 0:01:37]}  Bb7 {[%clk 0:01:48]} 14. Qe2 {[%clk 0:01:25]}  Nc6 {[%clk 0:01:27]} 15. Nxc6 {[%clk 0:01:20]}  Bxc6 {[%clk 0:01:28]} 16. Rhb1 {[%clk 0:01:12]}  Bxg2 {[%clk 0:01:02]} 17. f3 {[%clk 0:01:08]}  Bh3 {[%clk 0:01:01]} 18. Ke1 {[%clk 0:00:47]}  O-O {[%clk 0:01:00]} 19. Rxa5 {[%clk 0:00:44]}  Nd5 {[%clk 0:00:49]} 20. Ra3 {[%clk 0:00:29]}  Qg5 {[%clk 0:00:33]} 21. Kf2 {[%clk 0:00:14]}  Rfb8 {[%clk 0:00:18]} 22. Nc3 {[%clk 0:00:11]}  Qh4+ {[%clk 0:00:16]} 23. Kg1 {[%clk 0:00:11]}  Nxc3 {[%clk 0:00:15]} 24. Rxc3 {[%clk 0:00:12]}  e5 {[%clk 0:00:15]} 25. dxe5 {[%clk 0:00:08]}  Rg6+ {[%clk 0:00:15]} 26. Kh1 {[%clk 0:00:06]}  Qg5 {[%clk 0:00:06]} 27. Rcc1 {[%clk 0:00:04]}  Bg2+ {[%clk 0:00:06]} 28. Kg1 {[%clk 0:00:02]}  Bxf3+ {[%clk 0:00:07]} 0-1


[Site "https://www.chess.com"]

[Event "Titled Tuesday Blitz February 22 Early 2022"]
[White "Dev, Shah"]
[Black "Moskvin, Anatoly"]
[WhiteFideId "35019058"]
[BlackFideId "24199990"]
[WhiteElo "2098"]
[BlackElo "2079"]
[Result "1-0"]
[Round "08"]
[TimeControl "180+1"]
[Date "2022.02.22"]
[WhiteClock "0:00:26"]
[BlackClock "0:00:05"]

1. d4 {[%clk 0:03:00]}  Nf6 {[%clk 0:02:59]} 2. c4 {[%clk 0:02:54]}  c5 {[%clk 0:03:00]} 3. d5 {[%clk 0:02:52]}  b5 {[%clk 0:03:00]} 4. cxb5 {[%clk 0:02:53]}  a6 {[%clk 0:03:00]} 5. bxa6 {[%clk 0:02:53]}  Bxa6 {[%clk 0:03:01]} 6. Nc3 {[%clk 0:02:54]}  g6 {[%clk 0:03:00]} 7. Nf3 {[%clk 0:02:54]}  d6 {[%clk 0:03:00]} 8. e4 {[%clk 0:02:55]}  Bxf1 {[%clk 0:03:01]} 9. Kxf1 {[%clk 0:02:56]}  Bg7 {[%clk 0:03:01]} 10. g3 {[%clk 0:02:56]}  O-O {[%clk 0:03:02]} 11. Kg2 {[%clk 0:02:57]}  Nbd7 {[%clk 0:03:02]} 12. a4 {[%clk 0:02:57]}  Qb6 {[%clk 0:03:02]} 13. Qc2 {[%clk 0:02:45]}  Ng4 {[%clk 0:02:47]} 14. Nb5 {[%clk 0:02:35]}  f5 {[%clk 0:02:42]} 15. exf5 {[%clk 0:02:26]}  Rxf5 {[%clk 0:02:41]} 16. h3 {[%clk 0:02:22]}  Nde5 {[%clk 0:02:37]} 17. hxg4 {[%clk 0:02:00]}  Rxf3 {[%clk 0:02:35]} 18. Bf4 {[%clk 0:02:01]}  Rf8 {[%clk 0:02:15]} 19. g5 {[%clk 0:01:52]}  Qb7 {[%clk 0:02:03]} 20. Qe4 {[%clk 0:01:41]}  Qd7 {[%clk 0:01:32]} 21. Rh4 {[%clk 0:01:35]}  Rb3 {[%clk 0:01:27]} 22. Rah1 {[%clk 0:01:28]}  Rb4 {[%clk 0:01:10]} 23. Qc2 {[%clk 0:01:20]}  Qb7 {[%clk 0:01:07]} 24. Nc3 {[%clk 0:00:45]}  Rxb2 {[%clk 0:01:03]} 25. Qe4 {[%clk 0:00:45]}  Rf5 {[%clk 0:00:24]} 26. Rxh7 {[%clk 0:00:38]}  Ng4 {[%clk 0:00:08]} 27. Qe6+ {[%clk 0:00:31]}  Rf7 {[%clk 0:00:08]} 28. Qxg6 {[%clk 0:00:25]}  Rxf2+ {[%clk 0:00:07]} 29. Kg1 {[%clk 0:00:25]}  Qc8 {[%clk 0:00:05]} 30. Rh8# {[%clk 0:00:26]} 1-0


[Site "https://www.chess.com"]

[Event "Titled Tuesday Blitz February 22 Early 2022"]
[White "Devaev, Alexander"]
[Black "Goryachkina, Aleksandra"]
[WhiteFideId "4169395"]
[BlackFideId "4147103"]
[WhiteElo "2185"]
[BlackElo "2426"]
[Result "0-1"]
[Round "08"]
[TimeControl "180+1"]
[Date "2022.02.22"]
[WhiteClock "0:00:13"]
[BlackClock "0:00:12"]

1. d4 {[%clk 0:02:53]}  Nf6 {[%clk 0:02:58]} 2. c4 {[%clk 0:02:54]}  e6 {[%clk 0:02:59]} 3. Nf3 {[%clk 0:02:55]}  d5 {[%clk 0:02:58]} 4. cxd5 {[%clk 0:02:55]}  exd5 {[%clk 0:02:58]} 5. Nc3 {[%clk 0:02:56]}  c6 {[%clk 0:02:57]} 6. Bg5 {[%clk 0:02:56]}  h6 {[%clk 0:02:53]} 7. Bh4 {[%clk 0:02:56]}  Bf5 {[%clk 0:02:51]} 8. e3 {[%clk 0:02:55]}  Nbd7 {[%clk 0:02:51]} 9. Bd3 {[%clk 0:02:56]}  Bxd3 {[%clk 0:02:51]} 10. Qxd3 {[%clk 0:02:57]}  Bd6 {[%clk 0:02:50]} 11. O-O {[%clk 0:02:57]}  O-O {[%clk 0:02:50]} 12. Rab1 {[%clk 0:02:57]}  a5 {[%clk 0:02:46]} 13. a3 {[%clk 0:02:56]}  Qe7 {[%clk 0:02:46]} 14. Rfc1 {[%clk 0:02:47]}  Rfe8 {[%clk 0:02:40]} 15. Ne2 {[%clk 0:02:37]}  a4 {[%clk 0:02:27]} 16. Rc2 {[%clk 0:02:25]}  Qe6 {[%clk 0:02:24]} 17. Bxf6 {[%clk 0:02:16]}  Nxf6 {[%clk 0:02:23]} 18. Rbc1 {[%clk 0:02:17]}  Ne4 {[%clk 0:02:21]} 19. Nc3 {[%clk 0:02:10]}  f5 {[%clk 0:02:20]} 20. Nd2 {[%clk 0:01:59]}  Rf8 {[%clk 0:02:12]} 21. Re1 {[%clk 0:01:34]}  Bc7 {[%clk 0:02:04]} 22. Nf1 {[%clk 0:01:33]}  Nd6 {[%clk 0:01:58]} 23. Ne2 {[%clk 0:01:28]}  Nc4 {[%clk 0:01:52]} 24. Qd1 {[%clk 0:01:28]}  g5 {[%clk 0:01:45]} 25. Nc1 {[%clk 0:01:03]}  Qf6 {[%clk 0:01:38]} 26. Nd3 {[%clk 0:01:03]}  f4 {[%clk 0:01:37]} 27. exf4 {[%clk 0:00:35]}  Bxf4 {[%clk 0:01:32]} 28. Rce2 {[%clk 0:00:26]}  Qxd4 {[%clk 0:01:07]} 29. Re6 {[%clk 0:00:26]}  Rf6 {[%clk 0:01:00]} 30. Qh5 {[%clk 0:00:26]}  Raf8 {[%clk 0:00:56]} 31. Nxf4 {[%clk 0:00:23]}  Qxf4 {[%clk 0:00:52]} 32. f3 {[%clk 0:00:17]}  Qd4+ {[%clk 0:00:48]} 33. Kh1 {[%clk 0:00:16]}  Qh4 {[%clk 0:00:32]} 34. Ng3 {[%clk 0:00:16]}  Qxh5 {[%clk 0:00:25]} 35. Nxh5 {[%clk 0:00:17]}  Rxe6 {[%clk 0:00:25]} 36. Rxe6 {[%clk 0:00:17]}  d4 {[%clk 0:00:22]} 37. Re7 {[%clk 0:00:14]}  d3 {[%clk 0:00:18]} 38. Rd7 {[%clk 0:00:14]}  d2 {[%clk 0:00:18]} 39. h4 {[%clk 0:00:13]}  Rf5 {[%clk 0:00:17]} 40. g4 {[%clk 0:00:11]}  Rxf3 {[%clk 0:00:13]} 41. Kg2 {[%clk 0:00:09]}  Rf7 {[%clk 0:00:11]} 42. Rd8+ {[%clk 0:00:08]}  Kh7 {[%clk 0:00:11]} 43. Rd3 {[%clk 0:00:08]}  d1=Q {[%clk 0:00:10]} 44. Rxd1 {[%clk 0:00:08]}  Ne3+ {[%clk 0:00:11]} 45. Kg3 {[%clk 0:00:09]}  Nxd1 {[%clk 0:00:11]} 46. hxg5 {[%clk 0:00:09]}  hxg5 {[%clk 0:00:12]} 47. Kh3 {[%clk 0:00:10]}  Nxb2 {[%clk 0:00:12]} 48. Ng3 {[%clk 0:00:11]}  c5 {[%clk 0:00:11]} 49. Ne4 {[%clk 0:00:12]}  c4 {[%clk 0:00:12]} 50. Nxg5+ {[%clk 0:00:12]}  Kg6 {[%clk 0:00:13]} 51. Ne4 {[%clk 0:00:13]}  Re7 {[%clk 0:00:12]} 52. Nc3 {[%clk 0:00:13]}  Re3+ {[%clk 0:00:12]} 0-1


[Site "https://www.chess.com"]

[Event "Titled Tuesday Blitz February 22 Early 2022"]
[White "Dovbnia, Nikita"]
[Black "Ismayil, Malak"]
[WhiteFideId "54104599"]
[BlackFideId "13412604"]
[WhiteElo "2111"]
[BlackElo "1879"]
[Result "0-1"]
[Round "08"]
[TimeControl "180+1"]
[Date "2022.02.22"]
[WhiteClock "0:00:03"]
[BlackClock "0:00:06"]

1. Nf3 {[%clk 0:03:00]}  Nf6 {[%clk 0:02:58]} 2. g3 {[%clk 0:03:01]}  e6 {[%clk 0:02:57]} 3. Bg2 {[%clk 0:03:02]}  d5 {[%clk 0:02:57]} 4. O-O {[%clk 0:03:02]}  Be7 {[%clk 0:02:57]} 5. d3 {[%clk 0:03:03]}  O-O {[%clk 0:02:57]} 6. c4 {[%clk 0:03:04]}  c5 {[%clk 0:02:52]} 7. Nc3 {[%clk 0:02:59]}  d4 {[%clk 0:02:49]} 8. Ne4 {[%clk 0:02:59]}  Nxe4 {[%clk 0:02:46]} 9. dxe4 {[%clk 0:03:00]}  Nc6 {[%clk 0:02:45]} 10. Ne1 {[%clk 0:03:01]}  e5 {[%clk 0:02:43]} 11. Nd3 {[%clk 0:03:01]}  Be6 {[%clk 0:02:39]} 12. Qc2 {[%clk 0:02:59]}  Rc8 {[%clk 0:02:35]} 13. e3 {[%clk 0:02:52]}  dxe3 {[%clk 0:02:32]} 14. Bxe3 {[%clk 0:02:52]}  Nd4 {[%clk 0:02:32]} 15. Bxd4 {[%clk 0:02:47]}  exd4 {[%clk 0:02:31]} 16. f4 {[%clk 0:02:45]}  f6 {[%clk 0:02:30]} 17. b3 {[%clk 0:02:31]}  a6 {[%clk 0:02:27]} 18. f5 {[%clk 0:02:23]}  Bf7 {[%clk 0:02:26]} 19. Nf4 {[%clk 0:02:23]}  b5 {[%clk 0:02:25]} 20. Nd5 {[%clk 0:02:23]}  Bxd5 {[%clk 0:02:23]} 21. exd5 {[%clk 0:02:21]}  Bd6 {[%clk 0:02:23]} 22. Qd3 {[%clk 0:02:16]}  Qd7 {[%clk 0:02:21]} 23. Rfe1 {[%clk 0:02:13]}  Be5 {[%clk 0:02:20]} 24. Re2 {[%clk 0:01:53]}  Rb8 {[%clk 0:02:14]} 25. Rae1 {[%clk 0:01:51]}  Qd6 {[%clk 0:02:14]} 26. Re4 {[%clk 0:01:13]}  bxc4 {[%clk 0:02:12]} 27. bxc4 {[%clk 0:01:13]}  Rb4 {[%clk 0:02:11]} 28. R4e2 {[%clk 0:01:06]}  Rfb8 {[%clk 0:02:08]} 29. Be4 {[%clk 0:00:53]}  a5 {[%clk 0:02:05]} 30. Rc2 {[%clk 0:00:45]}  a4 {[%clk 0:01:59]} 31. Ree2 {[%clk 0:00:45]}  Rb1+ {[%clk 0:01:58]} 32. Kg2 {[%clk 0:00:44]}  Qa6 {[%clk 0:01:50]} 33. Qd2 {[%clk 0:00:33]}  a3 {[%clk 0:01:46]} 34. Bd3 {[%clk 0:00:32]}  R1b2 {[%clk 0:01:39]} 35. Qc1 {[%clk 0:00:30]}  Rb1 {[%clk 0:01:34]} 36. Qd2 {[%clk 0:00:26]}  h5 {[%clk 0:01:28]} 37. Be4 {[%clk 0:00:13]}  h4 {[%clk 0:01:26]} 38. Qd3 {[%clk 0:00:13]}  Ra1 {[%clk 0:01:14]} 39. gxh4 {[%clk 0:00:10]}  Rbb1 {[%clk 0:01:13]} 40. h5 {[%clk 0:00:10]}  Rg1+ {[%clk 0:01:12]} 41. Kh3 {[%clk 0:00:10]}  Rg5 {[%clk 0:01:06]} 42. Qf3 {[%clk 0:00:09]}  Rag1 {[%clk 0:00:59]} 43. Rg2 {[%clk 0:00:09]}  R1xg2 {[%clk 0:00:37]} 44. Rxg2 {[%clk 0:00:10]}  Rxg2 {[%clk 0:00:37]} 45. Qxg2 {[%clk 0:00:11]}  Kf8 {[%clk 0:00:31]} 46. h6 {[%clk 0:00:11]}  gxh6 {[%clk 0:00:30]} 47. Qg6 {[%clk 0:00:11]}  Qxc4 {[%clk 0:00:29]} 48. Qxh6+ {[%clk 0:00:11]}  Ke7 {[%clk 0:00:29]} 49. Qg7+ {[%clk 0:00:12]}  Kd6 {[%clk 0:00:28]} 50. Qf8+ {[%clk 0:00:12]}  Kc7 {[%clk 0:00:25]} 51. Qe7+ {[%clk 0:00:12]}  Kb6 {[%clk 0:00:25]} 52. Qd8+ {[%clk 0:00:10]}  Kb5 {[%clk 0:00:22]} 53. d6 {[%clk 0:00:09]}  Qc3+ {[%clk 0:00:19]} 54. Kg4 {[%clk 0:00:08]}  Qe3 {[%clk 0:00:15]} 55. Qb8+ {[%clk 0:00:08]}  Ka5 {[%clk 0:00:13]} 56. Qa7+ {[%clk 0:00:07]}  Kb5 {[%clk 0:00:13]} 57. Qb7+ {[%clk 0:00:07]}  Kc4 {[%clk 0:00:09]} 58. d7 {[%clk 0:00:05]}  Qf4+ {[%clk 0:00:06]} 59. Kh3 {[%clk 0:00:03]}  Qxh2+ {[%clk 0:00:06]} 60. Kg4 {[%clk 0:00:04]}  Qg3+ {[%clk 0:00:06]} 61. Kh5 {[%clk 0:00:03]}  Qg5# {[%clk 0:00:06]} 0-1


[Site "https://www.chess.com"]

[Event "Titled Tuesday Blitz February 22 Early 2022"]
[White "Dubov, Daniil"]
[Black "Cherniaiev, Tykhon"]
[WhiteFideId "24126055"]
[BlackFideId "14182360"]
[WhiteElo "2791"]
[BlackElo "2289"]
[Result "1-0"]
[Round "08"]
[TimeControl "180+1"]
[Date "2022.02.22"]
[WhiteClock "0:00:10"]
[BlackClock "0:00:03"]

1. e4 {[%clk 0:02:59]}  c5 {[%clk 0:03:00]} 2. Nf3 {[%clk 0:02:59]}  e6 {[%clk 0:03:00]} 3. d4 {[%clk 0:02:59]}  cxd4 {[%clk 0:03:01]} 4. Nxd4 {[%clk 0:03:00]}  a6 {[%clk 0:03:01]} 5. Bf4 {[%clk 0:02:54]}  e5 {[%clk 0:02:56]} 6. Bxe5 {[%clk 0:02:41]}  Qa5+ {[%clk 0:02:56]} 7. Nc3 {[%clk 0:02:41]}  Qxe5 {[%clk 0:02:56]} 8. Nf3 {[%clk 0:02:32]}  Qa5 {[%clk 0:02:55]} 9. Bc4 {[%clk 0:02:32]}  Bb4 {[%clk 0:02:42]} 10. O-O {[%clk 0:02:26]}  Bxc3 {[%clk 0:02:41]} 11. bxc3 {[%clk 0:02:25]}  Ne7 {[%clk 0:02:38]} 12. Qd6 {[%clk 0:02:20]}  Nbc6 {[%clk 0:02:38]} 13. Bd5 {[%clk 0:02:08]}  O-O {[%clk 0:02:24]} 14. c4 {[%clk 0:01:56]}  Qc3 {[%clk 0:02:05]} 15. Qg3 {[%clk 0:01:09]}  Nxd5 {[%clk 0:02:00]} 16. cxd5 {[%clk 0:01:07]}  Nd4 {[%clk 0:02:00]} 17. Nxd4 {[%clk 0:01:02]}  Qxd4 {[%clk 0:02:01]} 18. Rfe1 {[%clk 0:01:02]}  Re8 {[%clk 0:01:57]} 19. Rad1 {[%clk 0:00:59]}  Qb4 {[%clk 0:01:44]} 20. e5 {[%clk 0:00:58]}  d6 {[%clk 0:01:41]} 21. c3 {[%clk 0:00:51]}  Qc5 {[%clk 0:01:35]} 22. exd6 {[%clk 0:00:50]}  Bf5 {[%clk 0:01:25]} 23. Re5 {[%clk 0:00:45]}  Bd7 {[%clk 0:01:13]} 24. Rde1 {[%clk 0:00:43]}  Qxd5 {[%clk 0:01:02]} 25. h4 {[%clk 0:00:38]}  Rxe5 {[%clk 0:00:53]} 26. Rxe5 {[%clk 0:00:37]}  Qd1+ {[%clk 0:00:51]} 27. Kh2 {[%clk 0:00:37]}  Be6 {[%clk 0:00:46]} 28. Rg5 {[%clk 0:00:34]}  g6 {[%clk 0:00:46]} 29. h5 {[%clk 0:00:34]}  Qc2 {[%clk 0:00:15]} 30. h6 {[%clk 0:00:21]}  Qe4 {[%clk 0:00:12]} 31. Rc5 {[%clk 0:00:14]}  Rd8 {[%clk 0:00:13]} 32. Qg5 {[%clk 0:00:14]}  Rxd6 {[%clk 0:00:04]} 33. Qf6 {[%clk 0:00:11]}  Kf8 {[%clk 0:00:05]} 34. Rc7 {[%clk 0:00:11]}  Rd7 {[%clk 0:00:03]} 35. Rc8+ {[%clk 0:00:10]}  Rd8 {[%clk 0:00:03]} 36. Rxd8# {[%clk 0:00:10]} 1-0


[Site "https://www.chess.com"]

[Event "Titled Tuesday Blitz February 22 Early 2022"]
[White "Dushyant Sharma"]
[Black "Caputcuoglu, Zeki Berke"]
[WhiteFideId "25065130"]
[BlackFideId "34548610"]
[WhiteElo "2012"]
[BlackElo "1368"]
[Result "1-0"]
[Round "08"]
[TimeControl "180+1"]
[Date "2022.02.22"]
[WhiteClock "0:01:37"]
[BlackClock "0:00:53"]

1. e4 {[%clk 0:02:57]}  e5 {[%clk 0:02:59]} 2. Nf3 {[%clk 0:02:58]}  Nc6 {[%clk 0:02:58]} 3. Nc3 {[%clk 0:02:58]}  Nf6 {[%clk 0:02:58]} 4. Bb5 {[%clk 0:02:58]}  Nd4 {[%clk 0:02:58]} 5. Ba4 {[%clk 0:02:56]}  c6 {[%clk 0:02:57]} 6. d3 {[%clk 0:02:56]}  a5 {[%clk 0:02:57]} 7. Bb3 {[%clk 0:02:53]}  b5 {[%clk 0:02:53]} 8. Nxe5 {[%clk 0:02:48]}  d5 {[%clk 0:02:54]} 9. exd5 {[%clk 0:02:43]}  Bd6 {[%clk 0:02:26]} 10. Nxc6 {[%clk 0:02:25]}  Nxc6 {[%clk 0:02:24]} 11. dxc6 {[%clk 0:02:26]}  O-O {[%clk 0:02:25]} 12. Nxb5 {[%clk 0:02:21]}  Re8+ {[%clk 0:02:16]} 13. Be3 {[%clk 0:02:21]}  Bf4 {[%clk 0:01:46]} 14. O-O {[%clk 0:02:02]}  Bxh2+ {[%clk 0:01:10]} 15. Kxh2 {[%clk 0:01:59]}  Ng4+ {[%clk 0:01:05]} 16. Kg1 {[%clk 0:01:59]}  Rxe3 {[%clk 0:01:05]} 17. Bxf7+ {[%clk 0:01:41]}  Kxf7 {[%clk 0:01:02]} 18. fxe3+ {[%clk 0:01:40]}  Kg8 {[%clk 0:01:02]} 19. Qf3 {[%clk 0:01:39]}  Be6 {[%clk 0:00:53]} 20. c7 {[%clk 0:01:37]} 1-0


[Site "https://www.chess.com"]